fUSD/lending_fUSD_20250103
["ID","MTS","AMOUNT","RATE_DAILY","PERIOD"]
[347557237,1735915862383,-500.0,0.0001062,2]
[347557238,1735915862392,-500.0,0.0001062,2]
[347557239,1735915862401,-500.0,0.0001062,2]
[347557240,1735915862411,-558.62,0.0001062,2]
[347557241,1735915862420,-500.0,0.0001062,2]
[347557242,1735915862429,-728.47,0.0001062,2]
[347557243,1735915862438,-500.0,0.0001062,2]
[347557244,1735915862447,-500.0,0.0001062,2]
[347557245,1735915862456,-629.65,0.0001062,2]
[347557246,1735915862469,-641.92,0.0001062,2]
[347557247,1735915862478,-57.41322036,0.0001062,2]
[347557248,1735915862881,-442.58677964,0.0001062,2]
[347557249,1735915862891,-500.0,0.0001062,2]
[347557250,1735915862900,-500.0,0.0001062,2]
[347557251,1735915862912,-500.0,0.0001062,2]
[347557252,1735915862921,-500.0,0.0001062,2]
[347557253,1735915862931,-787.42,0.0001062,2]
[347557254,1735915862940,-500.0,0.0001062,2]
[347557255,1735915862950,-500.0,0.0001062,2]
[347557256,1735915862959,-500.0,0.0001062,2]
[347557257,1735915862971,-500.0,0.0001062,2]
[347557258,1735915862981,-765.02,0.0001062,2]
[347557259,1735915862990,-500.0,0.0001062,2]
[347557260,1735915862999,-562.23,0.0001062,2]
[347557261,1735915863009,-500.0,0.0001062,2]
[347557262,1735915863019,-500.0,0.0001062,2]
[347557263,1735915863028,-500.0,0.0001062,2]
[347557264,1735915863038,-500.0,0.0001062,2]
[347557265,1735915863048,-586.18,0.0001062,2]
[347557266,1735915863059,-613.89,0.0001062,2]
[347557267,1735915863069,-500.0,0.0001062,2]
[347557268,1735915863351,-500.0,0.0001062,2]
[347557269,1735915863430,-620.79,0.0001062,2]
[347557270,1735915863440,-500.0,0.0001062,2]
[347557271,1735915863451,-70.48465138,0.0001062,2]
[347557272,1735915863463,-429.51534862,0.0001062,2]
[347557273,1735915863477,-500.0,0.0001062,2]
[347557274,1735915863487,-512.46,0.0001062,2]
[347557275,1735915863497,-500.0,0.0001062,2]
[347557276,1735915863507,-647.28,0.0001062,2]
[347557277,1735915863516,-500.0,0.0001062,2]
[347557278,1735915863526,-500.0,0.0001062,2]
[347557279,1735915863536,-500.93,0.0001062,2]
[347557280,1735915863546,-500.0,0.0001062,2]
[347557281,1735915863558,-1827.48,0.0001062,2]
[347557282,1735915863568,-500.0,0.0001062,2]
[347557283,1735915863578,-798.61,0.0001062,2]
[347557284,1735915863588,-500.0,0.0001062,2]
[347557285,1735915863599,-500.0,0.0001062,2]
[347557286,1735915863609,-500.0,0.0001062,2]
[347557287,1735915863619,-500.0,0.0001062,2]
[347557288,1735915863630,-500.0,0.0001062,2]
[347557289,1735915863639,-500.0,0.0001062,2]
[347557290,1735915863650,-500.0,0.0001062,2]
[347557291,1735915863660,-1652.56,0.0001062,2]
[347557292,1735915863671,-507.89,0.0001062,2]
[347557293,1735915863680,-302.48817375,0.0001062,2]
[347557294,1735915863691,-500.0,0.0001062,2]
[347557295,1735915863701,-556.5,0.0001062,2]
[347557296,1735915863713,-500.0,0.0001062,2]
[347557297,1735915863730,-577.53,0.0001062,2]
[347557298,1735915863741,-500.0,0.0001062,2]
[347557299,1735915863752,-532.22,0.0001062,2]
[347557300,1735915863761,-625.15,0.0001062,2]
[347557301,1735915863771,-472.38975674,0.0001062,2]
[347557302,1735915863782,-750.61,0.0001062,2]
[347557303,1735915863793,-681.25,0.0001062,2]
[347557304,1735915863803,-500.0,0.0001062,2]
[347557305,1735915863813,-500.0,0.0001062,2]
[347557306,1735915863824,-500.0,0.0001062,2]
[347557307,1735915863833,-459.57342629,0.0001062,2]
[347557308,1735915863847,-95.39657371,0.0001062,2]
[347557309,1735915863857,-174.70179772,0.0001062,2]
[347557310,1735915863868,-501.17820228,0.0001062,2]
[347557311,1735915863879,-15.66352597,0.0001062,2]
[347557312,1735915863891,-527.93647403,0.0001062,2]
[347557313,1735915863900,-500.0,0.0001062,2]
[347557314,1735915863910,-572.71352597,0.0001062,2]
[347557315,1735915863921,-525.43647403,0.0001062,2]
[347557316,1735915863931,-1076.85,0.0001062,2]
[347557317,1735915863941,-329.38352597,0.0001062,2]
[347557318,1735915863954,-563.89647403,0.0001062,2]
[347557319,1735915863964,-500.0,0.0001062,2]
[347557320,1735915863977,-500.0,0.0001062,2]
[347557321,1735915863987,-500.0,0.0001062,2]
[347557322,1735915863997,-539.39,0.0001062,2]
[347557323,1735915864007,-810.0,0.0001062,2]
[347557324,1735915864018,-500.0,0.0001062,2]
[347557325,1735915864028,-500.0,0.0001062,2]
[347557326,1735915864037,-603.7,0.0001062,2]
[347557327,1735915864048,-500.0,0.0001062,2]
[347557328,1735915864058,-500.0,0.0001062,2]
[347557329,1735915864068,-514.15,0.0001062,2]
[347557330,1735915864078,-500.0,0.0001062,2]
[347557331,1735915864089,-1070.78,0.0001062,2]
[347557332,1735915864102,-500.0,0.0001062,2]
[347557333,1735915864112,-557.66,0.0001062,2]
[347557334,1735915864121,-2171.44,0.0001062,2]
[347557335,1735915864132,-733.1,0.0001062,2]
[347557336,1735915864143,-523.04,0.0001062,2]
[347557337,1735915864153,-500.0,0.0001062,2]
[347557338,1735915864163,-500.0,0.0001062,2]
[347557339,1735915864175,-3538.08,0.0001062,2]
[347557340,1735915864185,-500.0,0.0001062,2]
[347557341,1735915864195,-500.0,0.0001062,2]
[347557342,1735915864206,-500.0,0.0001062,2]
[347557343,1735915864216,-500.0,0.00010621,2]
[347557344,1735915864228,-809.67,0.00010621,2]
[347557345,1735915864238,-1242.14,0.00010621,2]
[347557346,1735915864248,-1385.67,0.00010621,2]
[347557347,1735915864259,-3009.37,0.00010621,2]
[347557348,1735915864269,-500.0,0.00010621,2]
[347557349,1735915864280,-2116.1,0.00010621,2]
[347557350,1735915864290,-1153.47,0.00010621,2]
[347557351,1735915864300,-3278.86,0.00010621,2]
[347557352,1735915864310,-738.52,0.00010621,2]
[347557353,1735915864320,-1912.52,0.00010621,2]
[347557354,1735915864330,-1012.16,0.00010621,2]
[347557355,1735915864340,-1062.93,0.00010621,2]
[347557356,1735915864350,-1842.98,0.00010621,2]
[347557357,1735915864360,-2490.76,0.00010621,2]
[347557358,1735915864371,-2413.1,0.00010621,2]
[347557359,1735915864381,-560.82,0.00010621,2]
[347557360,1735915864391,-1677.97,0.00010621,2]
[347557361,1735915864400,-2467.72382597,0.00010621,2]
[347557362,1735915864416,-2460.85617403,0.00010621,2]
[347557363,1735915864426,-3215.39,0.00010621,2]
[347557364,1735915864436,-1087.28,0.00010621,2]
[347557365,1735915864446,-1771.61,0.00010621,2]
[347557366,1735915864456,-3605.09,0.00010621,2]
[347557367,1735915864465,-1064.49,0.00010621,2]
[347557368,1735915864477,-1956.07,0.00010621,2]
[347557369,1735915864487,-865.68,0.00010621,2]
[347557370,1735915864495,-838.21,0.00010621,2]
[347557371,1735915864504,-1288.97,0.00010675,2]
[347557372,1735915864514,-1470.74,0.00010675,2]
[347557373,1735915864524,-2449.6,0.00010675,2]
[347557374,1735915864534,-1222.04,0.00010675,2]
[347557375,1735915864543,-3052.2,0.00010675,2]
[347557376,1735915864552,-1920.75,0.00010675,2]
[347557377,1735915864562,-5736.06,0.00010675,2]
[347557378,1735915864573,-5329.15,0.00010675,2]
[347557379,1735915864583,-527.46,0.00010675,2]
[347557380,1735915864592,-3557.32,0.00010675,2]
[347557381,1735915864602,-4251.65,0.00010675,2]
[347557382,1735915864611,-1815.23,0.00010675,2]
[347557383,1735915864621,-1834.25291095,0.00010693,2]
[347557384,1735915864631,-200.0,0.000107,3]
[347557385,1735915864641,-152.081801,0.00010739,4]
[347557386,1735915864651,-500.0,0.00010791,2]
[347557387,1735915864661,-1737.7,0.00010791,2]
[347557388,1735915864670,-2087.96,0.00010791,2]
[347557389,1735915864680,-1119.59,0.00010791,2]
[347557390,1735915864690,-1840.15,0.00010791,2]
[347557391,1735915864699,-500.0,0.00010791,2]
[347557392,1735915864709,-2700.66,0.00010791,2]
[347557393,1735915864719,-741.08,0.00010791,2]
[347557394,1735915864733,-686.6,0.00010791,2]
[347557395,1735915864743,-670.31,0.00010791,2]
[347557396,1735915864752,-500.0,0.00010791,2]
[347557397,1735915864761,-500.0,0.00010792,2]
[347557398,1735915864771,-500.0,0.00010792,2]
[347557399,1735915864780,-500.0,0.00010792,2]
[347557400,1735915864790,-500.0,0.00010792,2]
[347557401,1735915864799,-625.20587967,0.00010792,2]
[347557402,1735915864808,-500.0,0.00010792,2]
[347557403,1735915864818,-500.0,0.00010792,2]
[347557404,1735915864827,-500.0,0.00010792,2]
[347557405,1735915864837,-500.0,0.00010792,2]
[347557406,1735915864847,-501.73,0.00010792,2]
[347557407,1735915864857,-2027.49,0.00010792,2]
[347557408,1735915864866,-1089.39,0.00010792,2]
[347557409,1735915864876,-1487.2,0.00010792,2]
[347557410,1735915864886,-500.0,0.00010792,2]
[347557411,1735915864896,-547.0,0.00010792,2]
[347557412,1735915864905,-600.62,0.00010792,2]
[347557413,1735915864915,-500.0,0.00010792,2]
[347557414,1735915864924,-608.02,0.00010792,2]
[347557415,1735915864933,-500.0,0.00010792,2]
[347557416,1735915864943,-500.0,0.00010792,2]
[347557417,1735915864953,-586.6,0.00010792,2]
[347557418,1735915864962,-500.0,0.00010792,2]
[347557419,1735915864973,-500.0,0.00010792,2]
[347557420,1735915864982,-1201.25,0.00010792,2]
[347557421,1735915864992,-500.0,0.00010792,2]
[347557422,1735915865001,-500.0,0.00010792,2]
[347557423,1735915865011,-2194.37,0.00010792,2]
[347557424,1735915865020,-500.0,0.00010792,2]
[347557425,1735915865029,-874.35,0.00010792,2]
[347557426,1735915865039,-500.0,0.00010792,2]
[347557427,1735915865048,-500.0,0.00010792,2]
[347557428,1735915865058,-500.0,0.00010792,2]
[347557429,1735915865070,-500.0,0.00010792,2]
[347557430,1735915865079,-1613.42,0.00010792,2]
[347557431,1735915865090,-500.0,0.00010792,2]
[347557432,1735915865103,-820.18,0.00010793,2]
[347557433,1735915865112,-645.68,0.00010793,2]
[347557434,1735915865124,-507.77,0.00010793,2]
[347557435,1735915865133,-1494.05,0.00010793,2]
[347557436,1735915865143,-744.11,0.00010793,2]
[347557437,1735915865152,-538.79,0.00010793,2]
[347557438,1735915865162,-627.83,0.00010793,2]
[347557439,1735915865171,-568.5,0.00010793,2]
[347557440,1735915865182,-500.0,0.00010793,2]
[347557441,1735915865191,-802.9,0.00010793,2]
[347557442,1735915865201,-500.0,0.00010793,2]
[347557443,1735915865210,-500.0,0.00010793,2]
[347557444,1735915865222,-500.0,0.00010793,2]
[347557445,1735915865231,-500.0,0.00010793,2]
[347557446,1735915865241,-691.99,0.00010793,2]
[347557447,1735915865250,-534.78,0.00010793,2]
[347557448,1735915865260,-733.7,0.00010793,2]
[347557449,1735915865269,-1069.01,0.00010793,2]
[347557450,1735915865279,-591.13,0.00010793,2]
[347557451,1735915865288,-500.0,0.00010793,2]
[347557452,1735915865297,-3125.26,0.00010793,2]
[347557453,1735915865307,-508.97,0.00010793,2]
[347557454,1735915865316,-500.0,0.00010793,2]
[347557455,1735915865325,-1560.07,0.00010793,2]
[347557456,1735915865335,-622.64,0.00010793,2]
[347557457,1735915865344,-500.0,0.00010793,2]
[347557458,1735915865353,-500.0,0.00010793,2]
[347557459,1735915865363,-500.0,0.00010793,2]
[347557460,1735915865372,-618.26,0.00010793,2]
[347557461,1735915865381,-964.68,0.00010793,2]
[347557462,1735915865390,-500.0,0.00010793,2]
[347557463,1735915865400,-656.69,0.00010793,2]
[347557464,1735915865409,-500.0,0.00010793,2]
[347557465,1735915865418,-2222.475864,0.00010793,2]
[347557466,1735915865427,-500.0,0.00010793,2]
[347557467,1735915865435,-500.0,0.00010793,2]
[347557468,1735915865445,-153.754164,0.00010793,2]
[347557469,1735915865453,-500.0,0.00010793,2]
[347557470,1735915865462,-500.0,0.00010793,2]
[347557471,1735915865473,-1130.16,0.00010793,2]
[347557472,1735915865482,-500.0,0.00010793,2]
[347557473,1735915865491,-3237.86,0.00010793,2]
[347557474,1735915865501,-2327.996641,0.00010793,2]
[347557475,1735915865511,-681.5,0.00010793,2]
[347557476,1735915865520,-563.0,0.00010793,2]
[347557477,1735915865530,-500.0,0.00010793,2]
[347557478,1735915865539,-1275.35,0.00010793,2]
[347557479,1735915865548,-500.0,0.00010793,2]
[347557480,1735915865558,-500.0,0.00010793,2]
[347557481,1735915865567,-500.0,0.00010793,2]
[347557482,1735915865577,-732.31,0.00010793,2]
[347557483,1735915865587,-597.28,0.00010793,2]
[347557484,1735915865596,-500.0,0.00010793,2]
[347557485,1735915865607,-500.0,0.00010793,2]
[347557486,1735915865616,-500.0,0.00010793,2]
[347557487,1735915865628,-1052.43,0.00010793,2]
[347557488,1735915865637,-500.0,0.00010793,2]
[347557489,1735915865647,-753.84,0.00010793,2]
[347557490,1735915865656,-500.0,0.00010793,2]
[347557491,1735915865666,-1302.1,0.00010793,2]
[347557492,1735915865675,-500.0,0.00010793,2]
[347557493,1735915865684,-500.0,0.00010793,2]
[347557494,1735915865694,-684.02,0.00010793,2]
[347557495,1735915865704,-3005.09,0.00010793,2]
[347557496,1735915865713,-500.0,0.00010793,2]
[347557497,1735915865725,-500.0,0.00010793,2]
[347557498,1735915865734,-528.59,0.00010793,2]
[347557499,1735915865744,-1094.62,0.00010793,2]
[347557500,1735915865754,-752.73,0.00010793,2]
[347557501,1735915865764,-513.1,0.00010793,2]
[347557502,1735915865773,-500.0,0.00010793,2]
[347557503,1735915865783,-526.2,0.00010793,2]
[347557504,1735915865793,-578.25,0.00010793,2]
[347557505,1735915865802,-814.28,0.00010793,2]
[347557506,1735915865813,-500.0,0.00010793,2]
[347557507,1735915865882,-729.43,0.00010793,2]
[347557508,1735915865892,-500.0,0.00010793,2]
[347557509,1735915865902,-1565.1,0.00010793,2]
[347557510,1735915865911,-884.7,0.00010793,2]
[347557511,1735915865921,-500.0,0.00010793,2]
[347557512,1735915865930,-1442.45,0.00010793,2]
[347557513,1735915865939,-3467.57,0.00010793,2]
[347557514,1735915865948,-650.25,0.00010793,2]
[347557515,1735915865957,-596.58,0.00010793,2]
[347557516,1735915865966,-502.46,0.00010793,2]
[347557517,1735915865978,-1999.27,0.00010793,2]
[347557518,1735915865988,-529.16,0.00010793,2]
[347557519,1735915865997,-503.81,0.00010793,2]
[347557520,1735915866007,-500.0,0.00010793,2]
[347557521,1735915866016,-500.0,0.00010793,2]
[347557522,1735915866025,-3318.34,0.00010793,2]
[347557523,1735915866035,-500.0,0.00010793,2]
[347557524,1735915866044,-789.57,0.00010793,2]
[347557525,1735915866054,-500.0,0.00010793,2]
[347557526,1735915866064,-520.54,0.00010793,2]
[347557527,1735915866073,-500.0,0.00010793,2]
[347557528,1735915866083,-552.99,0.00010794,2]
[347557529,1735915866094,-1102.47,0.00010794,2]
[347557530,1735915866108,-500.0,0.00010794,2]
[347557531,1735915866117,-868.46,0.00010794,2]
[347557532,1735915866127,-500.0,0.00010794,2]
[347557533,1735915866136,-585.01,0.00010794,2]
[347557534,1735915866147,-1050.01,0.00010794,2]
[347557535,1735915866157,-551.2,0.00010794,2]
[347557536,1735915866166,-500.0,0.00010794,2]
[347557537,1735915866176,-500.0,0.00010794,2]
[347557538,1735915866186,-500.0,0.00010794,2]
[347557539,1735915866196,-1525.87,0.00010794,2]
[347557540,1735915866206,-579.32,0.00010794,2]
[347557541,1735915866215,-1095.84,0.00010794,2]
[347557542,1735915866228,-500.0,0.00010794,2]
[347557543,1735915866239,-500.0,0.00010794,2]
[347557544,1735915866248,-676.02,0.00010794,2]
[347557545,1735915866257,-500.0,0.00010794,2]
[347557546,1735915866266,-829.08,0.00010794,2]
[347557547,1735915866275,-4123.59035824,0.00010794,2]
[347557548,1735915866286,-200.0,0.000108,3]
[347557549,1735915866295,-1886.29713163,0.000108,2]
[347557550,1735915866309,-116.98286837,0.000108,2]
[347557551,1735915866319,-317.73194439,0.00010816,2]
[347557552,1735915866330,-53.73805561,0.00010816,2]
[347557553,1735915866340,-429.51484354,0.00010832,2]
[347557554,1735915866349,-4123.59035823,0.00010847,2]
[347557555,1735915866359,-586.18,0.00010893,2]
[347557556,1735915866368,-757.98,0.00010893,2]
[347557557,1735915866377,-695.23,0.00010894,2]
[347557558,1735915866387,-500.0,0.00010894,2]
[347557559,1735915866396,-439.71226315,0.00010894,2]
[347557560,1735915866408,-95.26773685,0.00010894,2]
[347557561,1735915866417,-404.35826215,0.00010894,2]
[347557562,1735915866428,-108.67173785,0.00010894,2]
[347557563,1735915866437,-500.0,0.00010894,2]
[347557564,1735915866446,-502.82,0.00010894,2]
[347557565,1735915866455,-608.24267619,0.00010894,2]
[347557566,1735915866464,-500.0,0.00010894,2]
[347557567,1735915866477,-500.0,0.00010894,2]
[347557568,1735915866486,-606.48665194,0.00010894,2]
[347557569,1735915866497,-500.0,0.00010894,2]
[347557570,1735915866507,-500.0,0.00010894,2]
[347557571,1735915866515,-370.57347775,0.00010894,2]
[347557572,1735915866524,-500.0,0.00010894,2]
[347557573,1735915866533,-500.0,0.00010894,2]
[347557574,1735915866543,-581.17,0.00010894,2]
[347557575,1735915866552,-500.0,0.00010894,2]
[347557576,1735915866561,-500.0,0.00010894,2]
[347557577,1735915866570,-580.58,0.00010894,2]
[347557578,1735915866579,-500.0,0.00010894,2]
[347557579,1735915866589,-530.0,0.00010894,2]
[347557580,1735915866598,-134.39704852,0.00010894,2]
[347557581,1735915866911,-1208.43,8.977e-05,2]
[347557582,1735915866921,-1208.43,9.251e-05,2]
[347557583,1735915866930,-366.87726219,9.767e-05,2]
[347557584,1735915866939,-366.87726219,9.915e-05,2]
[347557585,1735915866949,-366.87726219,0.00010153,2]
[347557586,1735915866959,-366.87726219,0.00010417,2]
[347557587,1735915866968,-365.60295148,0.00010894,2]
[347557588,1735915866981,-500.0,0.00010894,2]
[347557589,1735915866990,-1332.3,0.00010894,2]
[347557590,1735915866999,-500.0,0.00010894,2]
[347557591,1735915867008,-500.0,0.00010894,2]
[347557592,1735915867017,-500.0,0.00010894,2]
[347557593,1735915867027,-447.81289491,0.00010894,2]
[347557594,1735915867037,-804.31,0.00010894,2]
[347557595,1735915867046,-212.14666726,0.00010894,2]
[347557596,1735915867055,-500.0,0.00010894,2]
[347557597,1735915867064,-500.0,0.00010894,2]
[347557598,1735915867073,-500.0,0.00010894,2]
[347557599,1735915867082,-569.46,0.00010894,2]
[347557600,1735915867092,-634.03,0.00010894,2]
[347557601,1735915867102,-500.0,0.00010894,2]
[347557602,1735915867111,-500.0,0.00010894,2]
[347557603,1735915867121,-500.0,0.00010894,2]
[347557604,1735915867130,-500.0,0.00010894,2]
[347557605,1735915867140,-588.44,0.00010894,2]
[347557606,1735915867150,-500.0,0.00010894,2]
[347557607,1735915867158,-500.0,0.00010894,2]
[347557608,1735915867168,-500.0,0.00010894,2]
[347557609,1735915867180,-500.0,0.00010894,2]
[347557610,1735915867188,-500.0,0.00010894,2]
[347557611,1735915867198,-579.14,0.00010894,2]
[347557612,1735915867207,-500.0,0.00010894,2]
[347557613,1735915867216,-500.0,0.00010894,2]
[347557614,1735915867228,-500.0,0.00010894,2]
[347557615,1735915867237,-558.62,0.00010894,2]
[347557616,1735915867246,-451.07555808,0.00010894,2]
[347557617,1735915867258,-48.92444192,0.00010894,2]
[347557618,1735915867267,-676.29523135,0.00010894,2]
[347557619,1735915867286,-52.17476865,0.00010894,2]
[347557620,1735915867295,-500.0,0.00010894,2]
[347557621,1735915867305,-500.0,0.00010894,2]
[347557622,1735915867314,-629.65,0.00010894,2]
[347557623,1735915867323,-243.14731908,0.00010894,2]
[347557624,1735915867335,-398.77268092,0.00010894,2]
[347557625,1735915867345,-500.0,0.00010894,2]
[347557626,1735915867353,-500.0,0.00010894,2]
[347557627,1735915867362,-186.53146248,0.00010894,2]
[347557628,1735915867373,-313.46853752,0.00010894,2]
[347557629,1735915867382,-209.33146248,0.00010894,2]
[347557630,1735915867393,-290.66853752,0.00010894,2]
[347557631,1735915867402,-500.0,0.00010894,2]
[347557632,1735915867411,-787.42,0.00010894,2]
[347557633,1735915867421,-500.0,0.00010894,2]
[347557634,1735915867430,-500.0,0.00010894,2]
[347557635,1735915867439,-500.0,0.00010894,2]
[347557636,1735915867448,-500.0,0.00010894,2]
[347557637,1735915867457,-765.02,0.00010894,2]
[347557638,1735915867467,-500.0,0.00010894,2]
[347557639,1735915867480,-562.23,0.00010894,2]
[347557640,1735915867490,-500.0,0.00010894,2]
[347557641,1735915867499,-500.0,0.00010894,2]
[347557642,1735915867508,-500.0,0.00010894,2]
[347557643,1735915867517,-500.0,0.00010894,2]
[347557644,1735915867526,-586.18,0.00010894,2]
[347557645,1735915867535,-613.89,0.00010894,2]
[347557646,1735915867544,-500.0,0.00010894,2]
[347557647,1735915867552,-500.0,0.00010894,2]
[347557648,1735915867561,-620.79,0.00010894,2]
[347557649,1735915867570,-500.0,0.00010894,2]
[347557650,1735915867579,-500.0,0.00010894,2]
[347557651,1735915867588,-500.0,0.00010894,2]
[347557652,1735915867598,-348.98964591,0.00010894,2]
[347557653,1735915867629,-163.47035409,0.00010894,2]
[347557654,1735915867638,-500.0,0.00010894,2]
[347557655,1735915867647,-647.28,0.00010894,2]
[347557656,1735915867656,-500.0,0.00010894,2]
[347557657,1735915867664,-200.48196162,0.00010894,2]
[347557658,1735915867674,-500.93,0.00010894,2]
[347557659,1735915867683,-500.0,0.00010894,2]
[347557660,1735915867692,-1827.48,0.00010894,2]
[347557661,1735915867702,-500.0,0.00010894,2]
[347557662,1735915867711,-798.61,0.00010894,2]
[347557663,1735915867720,-500.0,0.00010894,2]
[347557664,1735915867734,-500.0,0.00010894,2]
[347557665,1735915867743,-500.0,0.00010894,2]
[347557666,1735915867752,-500.0,0.00010894,2]
[347557667,1735915867761,-500.0,0.00010894,2]
[347557668,1735915867770,-500.0,0.00010894,2]
[347557669,1735915867778,-500.0,0.00010894,2]
[347557670,1735915867788,-1652.56,0.00010894,2]
[347557671,1735915867797,-507.89,0.00010894,2]
[347557672,1735915867806,-500.0,0.00010894,2]
[347557673,1735915867815,-556.5,0.00010894,2]
[347557674,1735915867824,-500.0,0.00010894,2]
[347557675,1735915867833,-577.53,0.00010894,2]
[347557676,1735915867842,-500.0,0.00010894,2]
[347557677,1735915867852,-532.22,0.00010894,2]
[347557678,1735915867860,-625.15,0.00010894,2]
[347557679,1735915867869,-750.61,0.00010894,2]
[347557680,1735915867878,-681.25,0.00010894,2]
[347557681,1735915867888,-500.0,0.00010894,2]
[347557682,1735915867897,-422.63083794,0.00010894,2]
[347557683,1735915867907,-500.0,0.00010894,2]
[347557684,1735915867916,-554.97,0.00010894,2]
[347557685,1735915867925,-675.88,0.00010894,2]
[347557686,1735915867935,-543.6,0.00010894,2]
[347557687,1735915867944,-500.0,0.00010894,2]
[347557688,1735915867954,-1098.15,0.00010894,2]
[347557689,1735915867963,-1076.85,0.00010894,2]
[347557690,1735915867973,-893.28,0.00010894,2]
[347557691,1735915867983,-500.0,0.00010894,2]
[347557692,1735915867992,-3.42684635,0.00010894,2]
[347557693,1735915868020,-1208.43,9.525e-05,2]
[347557694,1735915868029,-364.82449776,9.64e-05,2]
[347557695,1735915868041,-738.17550224,9.64e-05,2]
[347557696,1735915868054,-192.22800075,0.00010894,2]
[347557697,1735915868460,-507.04,9.149e-05,2]
[347557698,1735915868469,-1208.43,9.799e-05,2]
[347557699,1735915868482,-1208.43,0.00010073,2]
[347557700,1735915868492,-872.67,0.00010795,2]
[347557701,1735915868502,-1955.14,0.00010795,2]
[347557702,1735915868511,-365.52,0.00010795,2]
[347557703,1735915868521,-1834.25291093,0.00010797,2]
[347557704,1735915868530,-304.3451529,0.00010894,2]
[347557705,1735915868539,-500.0,0.00010894,2]
[347557706,1735915868548,-539.39,0.00010894,2]
[347557707,1735915868558,-810.0,0.00010894,2]
[347557708,1735915868567,-500.0,0.00010894,2]
[347557709,1735915868576,-500.0,0.00010894,2]
[347557710,1735915868585,-603.7,0.00010894,2]
[347557711,1735915868595,-500.0,0.00010894,2]
[347557712,1735915868604,-500.0,0.00010894,2]
[347557713,1735915868613,-514.15,0.00010894,2]
[347557714,1735915868622,-500.0,0.00010894,2]
[347557715,1735915868632,-1070.78,0.00010894,2]
[347557716,1735915868641,-500.0,0.00010894,2]
[347557717,1735915868651,-557.66,0.00010894,2]
[347557718,1735915868660,-733.1,0.00010894,2]
[347557719,1735915868669,-2171.44,0.00010894,2]
[347557720,1735915868679,-523.04,0.00010894,2]
[347557721,1735915868688,-500.0,0.00010894,2]
[347557722,1735915868697,-500.0,0.00010894,2]
[347557723,1735915868707,-3538.08,0.00010894,2]
[347557724,1735915868716,-500.0,0.00010894,2]
[347557725,1735915868728,-500.0,0.00010894,2]
[347557726,1735915868737,-500.0,0.00010894,2]
[347557727,1735915868746,-500.0,0.00010895,2]
[347557728,1735915868755,-809.67,0.00010895,2]
[347557729,1735915868764,-1242.14,0.00010895,2]
[347557730,1735915868775,-1385.67,0.00010895,2]
[347557731,1735915868784,-3009.37,0.00010895,2]
[347557732,1735915868793,-500.0,0.00010895,2]
[347557733,1735915868802,-2116.1,0.00010895,2]
[347557734,1735915868811,-451.78713617,0.00010895,2]
[347557735,1735915868823,-701.68286383,0.00010895,2]
[347557736,1735915868833,-3278.86,0.00010895,2]